bitfinex/quotes_SOLUSD_20250625
["timestamp","ask_amount","ask_price","bid_price","bid_amount"]
[1750874185928,25.32946684,143.86,143.81,93.97981798]
[1750874186233,5.19113925,143.85,143.81,93.97981798]
[1750874186534,5.19113925,143.84,143.81,93.97981798]
[1750874186739,25.32946684,143.86,143.82,6.95313586]
[1750874186930,5.18865248,143.85,143.82,6.95313586]
[1750874187120,25.32946684,143.86,143.82,6.95313586]
[1750874187306,5.18864892,143.85,143.82,6.95313586]
[1750874187513,25.32946684,143.86,143.82,6.95313586]
[1750874187712,5.18656154,143.85,143.82,6.95313586]
[1750874187913,6.67981798,143.86,143.82,13.63295384]
[1750874188113,6.67981798,143.86,143.82,6.95313586]
[1750874188313,6.67981798,143.87,143.82,13.63295384]
[1750874188542,11.86608647,143.86,143.82,6.95313586]
[1750874188718,6.67981798,143.86,143.82,13.63295384]
[1750874189541,6.67981798,143.86,143.82,6.95313586]
[1750874189728,6.67981798,143.86,143.82,94.25313586]
[1750874190414,6.67981798,143.85,143.82,94.25313586]
[1750874192217,6.67981798,143.84,143.82,87.3]
[1750874192937,5.17898016,143.85,143.82,87.3]
[1750874192938,11.85879814,143.85,143.82,94.25308257]
[1750874193139,6.67981798,143.86,143.82,94.25308257]
[1750874193317,6.67981798,143.86,143.82,100.93290055]
[1750874193522,6.67981798,143.86,143.82,94.25308257]
[1750874193831,6.67981798,143.85,143.82,94.25308257]
[1750874194427,6.67981798,143.86,143.82,94.25308257]
[1750874194624,11.85571276,143.86,143.82,94.25308257]
[1750874194842,6.67981798,143.86,143.82,94.25308257]
[1750874195036,11.85571276,143.86,143.82,94.25308257]
[1750874195239,6.67981798,143.86,143.82,94.25308257]
[1750874196129,6.67981798,143.85,143.82,94.25308257]
[1750874196634,6.67981798,143.86,143.82,94.25308257]
[1750874198928,6.67981798,143.85,143.82,94.25308257]
[1750874200255,6.67981798,143.86,143.82,94.25308257]
[1750874201127,6.67981798,143.85,143.82,94.25308257]
[1750874202235,6.67981798,143.89,143.84,6.67981798]
[1750874203148,23.81658135,143.9,143.85,6.67981798]
[1750874203338,23.81658135,143.9,143.85,93.97981798]
[1750874203529,23.81658135,143.9,143.86,6.95120255]
[1750874203733,6.65910699,143.91,143.87,6.67981798]
[1750874203936,8.17199248,143.91,143.87,93.97981798]
[1750874204150,1.4921745,143.91,143.87,93.97981798]
[1750874204332,1.4921745,143.91,143.9,6.67981798]
[1750874204537,1.4921745,143.91,143.9,93.97981798]
[1750874205664,1.4921745,143.91,143.9,100.9290883]
[1750874207059,1.4921745,143.91,143.9,94.24927032]
[1750874209154,1.4921745,143.91,143.9,6.94927032]
[1750874209335,1.4921745,143.91,143.89,94.24954218]
[1750874209336,8.17199248,143.91,143.89,94.24954218]
[1750874209534,6.67981798,143.9,143.89,94.24954218]
[1750874209859,6.67981798,143.9,143.89,87.3]
[1750874210234,25.32946684,143.9,143.87,6.95054801]
[1750874210442,6.67981798,143.88,143.85,87.3]
[1750874210681,18.64964886,143.9,143.85,87.3]
[1750874210682,6.67981798,143.86,143.85,87.3]
[1750874210872,6.67981798,143.86,143.84,6.95216907]
[1750874212986,25.59892749,143.9,143.84,6.95216907]
[1750874213162,6.67981798,143.86,143.84,6.95216907]
[1750874213767,25.59892749,143.9,143.84,6.95216907]
[1750874213966,6.67981798,143.86,143.84,6.95216907]
[1750874214768,6.67981798,143.86,143.84,94.25216907]
[1750874214954,6.67981798,143.87,143.84,94.25216907]
[1750874215265,6.67981798,143.89,143.85,6.67981798]
[1750874215444,6.67981798,143.9,143.85,93.97981798]
[1750874215654,6.67981798,143.89,143.85,93.97981798]
[1750874215872,1.4921745,143.91,143.85,93.97981798]
[1750874216046,6.67981798,143.89,143.86,6.95120255]
[1750874216575,6.67981798,143.9,143.86,13.63102053]
[1750874216760,6.67981798,143.9,143.86,6.95120255]
[1750874217475,1.4921745,143.91,143.86,6.95120255]
[1750874217786,6.67981798,143.89,143.86,6.95120255]
[1750874219276,6.67981798,143.89,143.86,94.25120255]
[1750874219685,1.4921745,143.91,143.87,6.67981798]
[1750874219872,1.4921745,143.91,143.88,6.67981798]
[1750874220178,1.4921745,143.91,143.89,6.94975328]
[1750874220377,1.4921745,143.91,143.89,94.24975328]
[1750874220882,1.4921745,143.91,143.89,100.92957126]
[1750874221266,1.4921745,143.91,143.89,94.24975328]
[1750874221480,8.17199248,143.91,143.89,94.24975328]
[1750874221697,1.4921745,143.91,143.89,94.24975328]
[1750874222763,1.4921745,143.91,143.89,100.92957126]
[1750874223604,1.4921745,143.91,143.89,94.24975328]
[1750874223908,1.4921745,143.91,143.9,6.67981798]
[1750874224403,1.4921745,143.91,143.9,13.6290883]
[1750874225198,1.4921745,143.91,143.9,94.24927032]
[1750874225366,1.4921745,143.91,143.9,100.9290883]
[1750874226664,5.1633163,143.95,143.91,85.8078255]
[1750874226869,25.32946684,143.96,143.91,92.48764348]
[1750874227085,18.64964886,143.98,143.93,6.67981798]
[1750874227380,18.64964886,143.98,143.93,92.48764348]
[1750874227381,5.16304861,143.97,143.93,92.48764348]
[1750874227552,25.32946684,143.98,143.93,92.48764348]
[1750874227984,23.81401439,143.98,143.93,92.48764348]
[1750874228172,18.64964886,143.98,143.93,85.8078255]
[1750874228377,5.16224624,143.98,143.94,6.67981798]
[1750874228583,8.22601798,143.99,143.95,6.94685654]
[1750874228883,18.79181043,144.02,143.95,13.62667452]
[1750874229062,6.67981798,144.0,143.95,99.43450002]
[1750874229258,5.16318009,143.99,143.96,6.67981798]
[1750874229464,18.64964886,144.02,143.96,92.48764348]
[1750874229778,11.84181958,144.01,143.96,92.48764348]
[1750874229969,30.49146844,144.0,143.96,85.8078255]
[1750874230182,6.67981798,143.97,143.96,85.8078255]
[1750874230559,6.67981798,143.98,143.96,85.8078255]
[1750874231267,6.67981798,143.97,143.96,85.8078255]
[1750874231472,5.15845192,144.0,143.96,85.8078255]
[1750874231665,6.67981798,143.98,143.96,85.8078255]
[1750874231979,25.59361108,144.01,143.96,85.8078255]
[1750874232186,5.15861854,144.0,143.96,85.8078255]
[1750874232483,5.15861854,143.99,143.96,85.8078255]
[1750874232691,5.15861854,144.0,143.96,85.8078255]
[1750874232890,11.83843652,143.99,143.96,92.75417123]
[1750874233091,18.64964886,143.97,143.96,85.8078255]
[1750874233260,25.32946684,143.97,143.96,85.8078255]
[1750874233661,5.15771743,143.98,143.96,85.8078255]
[1750874233662,18.64964886,144.0,143.96,99.43401747]
[1750874233876,23.80736629,144.0,143.96,99.43401747]
[1750874234478,23.80736629,144.0,143.97,6.67981798]
[1750874234682,23.80736629,144.0,143.98,6.94540908]
[1750874234880,18.64964886,144.01,143.98,6.94540908]
[1750874235071,5.15771743,144.0,143.98,6.94540908]
[1750874235376,18.64964886,144.01,143.98,6.94540908]
[1750874235581,25.32946684,144.01,143.96,85.8078255]
[1750874235771,23.80736629,144.01,143.97,6.94580105]
[1750874236087,25.32946684,144.01,143.97,13.62561903]
[1750874236265,25.32946684,144.01,143.96,92.75398934]
[1750874236266,6.67981798,144.0,143.96,92.75398934]
[1750874236593,25.32946684,143.97,143.96,85.8078255]
[1750874237195,18.64964886,143.96,143.93,85.8078255]
[1750874237376,25.32946684,143.94,143.86,6.2992]
[1750874237570,6.67981798,143.88,143.86,6.95120255]
[1750874237766,6.67981798,143.92,143.83,6.95246906]
[1750874237767,6.67981798,143.87,143.83,6.95246906]
[1750874237983,25.32946684,143.86,143.83,6.95227243]
[1750874238289,6.67981798,143.87,143.84,6.95198797]
[1750874238597,12.92876858,143.9,143.83,6.67981798]
[1750874238598,6.67981798,143.86,143.83,6.95249918]
[1750874238780,25.32946684,143.86,143.8,34.05161798]
[1750874239097,25.32946684,143.86,143.8,63.07161798]
[1750874239474,24.32946684,143.86,143.83,6.95263066]
[1750874239895,18.64964886,143.86,143.83,6.95263066]
[1750874240198,25.32946684,143.86,143.83,6.95263066]
[1750874240498,25.32946684,143.86,143.79,7.67724525]
[1750874240811,25.32946684,143.86,143.81,6.95344852]
[1750874241107,32.28066939,143.86,143.79,7.67724525]
[1750874241287,32.28066939,143.86,143.79,14.63172086]
[1750874241609,32.42283096,143.86,143.8,6.95406824]
[1750874241807,37.58080582,143.86,143.8,6.95406824]
[1750874242020,37.58080582,143.86,143.79,7.67724525]
[1750874242186,37.58080582,143.86,143.79,14.63175336]
[1750874242383,0.14216157,143.84,143.79,7.67724525]
[1750874242617,18.64964886,143.79,143.75,17.39033601]
[1750874242913,25.32946684,143.79,143.75,24.07015399]
[1750874243413,18.64964886,143.79,143.75,24.07015399]
[1750874243915,18.64964886,143.79,143.76,6.95603784]
[1750874245807,18.64964886,143.79,143.74,39.0018]
[1750874246018,9.96689252,143.79,143.75,16.92341425]
[1750874247314,18.64964886,143.79,143.75,34.31471859]
[1750874248915,14.7231706,143.83,143.75,6.95652173]
[1750874248916,9.96689252,143.78,143.75,6.95652173]
[1750874249097,25.6033941,143.81,143.75,6.95652173]
[1750874249414,9.96689252,143.78,143.75,6.95652173]
[1750874250212,9.96689252,143.79,143.75,6.95652173]
[1750874250400,9.96689252,143.79,143.75,16.92341425]
[1750874250814,9.96689252,143.78,143.75,6.95652173]
[1750874251105,18.64964886,143.77,143.75,6.95652173]
[1750874251306,18.64964886,143.77,143.74,6.34]
[1750874251307,18.64964886,143.75,143.69,10.42318115]
[1750874251519,9.96689252,143.73,143.69,20.39007367]
[1750874252502,18.64964886,143.75,143.7,16.92583476]
[1750874252693,9.96689252,143.76,143.72,9.96689252]
[1750874253094,9.96689252,143.76,143.72,95.77471802]
[1750874253600,28.61654138,143.78,143.73,9.96689252]
[1750874253937,9.96689252,143.77,143.73,9.96689252]
[1750874254722,9.96689252,143.77,143.74,6.9570057]
[1750874256601,9.96689252,143.75,143.72,85.8078255]
[1750874256917,9.96689252,143.73,143.72,85.8078255]
[1750874257124,18.64964886,143.75,143.71,120.12900829]
[1750874257507,9.96689252,143.77,143.72,9.96689252]
[1750874257817,18.64964886,143.76,143.72,95.77471802]
[1750874258022,9.96689252,143.76,143.72,85.8078255]
[1750874258735,9.96689252,143.76,143.73,6.95748973]
[1750874258934,20.16834886,143.73,143.69,10.42318115]
[1750874259230,28.75870295,143.7,143.69,10.42318115]
[1750874260708,35.71764519,143.7,143.69,10.42318115]
[1750874261329,28.75870295,143.7,143.69,10.42318115]
[1750874261495,28.61654138,143.7,143.69,10.42318115]
[1750874262911,18.64964886,143.7,143.69,17.38260769]
[1750874266004,28.61654138,143.7,143.69,10.42318115]
[1750874266601,18.64964886,143.7,143.69,104.68260769]
[1750874266824,28.61654138,143.7,143.69,97.72318115]
[1750874268002,28.61654138,143.7,143.69,104.68260769]
[1750874268210,18.64964886,143.7,143.69,104.68260769]
[1750874272004,25.30172354,143.7,143.69,97.72318115]
[1750874272632,25.30172354,143.7,143.69,10.42318115]
[1750874273212,18.64964886,143.7,143.69,17.38260769]
[1750874274328,1.5187,143.73,143.69,122.08117404]
[1750874274539,18.64964886,143.76,143.72,6.65207468]
[1750874274836,8.23157468,143.77,143.72,93.95207468]
[1750874275013,8.23157468,143.77,143.73,6.95748973]
[1750874275221,18.64964886,143.76,143.73,6.95748973]
[1750874275818,25.30172354,143.76,143.73,6.95748973]
[1750874276312,28.62166213,143.76,143.73,6.95748973]
[1750874276635,18.64964886,143.76,143.73,6.95748973]
[1750874278531,18.64964886,143.76,143.73,94.25748973]
[1750874279431,28.62166213,143.76,143.73,94.25748973]
[1750874280141,28.62166213,143.74,143.73,87.3]
[1750874281440,33.7594489,143.74,143.73,87.3]
[1750874281820,28.62166213,143.74,143.73,87.3]
[1750874282239,33.77734591,143.74,143.73,87.3]
[1750874282538,23.80533264,143.74,143.73,87.3]
[1750874282738,23.80533264,143.74,143.73,94.25748973]
[1750874283143,5.15568378,143.74,143.73,104.229503]
[1750874283332,16.45201327,143.79,143.73,104.229503]
[1750874283534,5.15815415,143.78,143.76,9.97201327]
[1750874283834,18.64964886,143.8,143.77,9.97201327]
[1750874284014,5.15771051,143.79,143.77,9.97201327]
[1750874284215,5.15771051,143.78,143.77,9.97201327]
[1750874284415,5.15771051,143.78,143.76,97.27201327]
[1750874284618,18.64964886,143.8,143.76,97.27201327]
[1750874284917,5.16070235,143.79,143.76,97.27201327]
[1750874285128,5.16070235,143.78,143.77,9.97201327]
[1750874285419,5.16070235,143.78,143.77,16.92756727]
[1750874286822,5.16070235,143.78,143.77,6.955554]
[1750874287447,5.16070235,143.78,143.77,104.22756727]
[1750874287623,5.16070235,143.78,143.77,94.255554]
[1750874288851,18.64964886,143.8,143.77,94.255554]
[1750874289030,5.16740047,143.79,143.77,94.255554]
[1750874289336,18.64964886,143.8,143.77,94.255554]
[1750874289544,5.16783806,143.79,143.77,94.255554]
[1750874289741,18.64964886,143.8,143.77,94.255554]
[1750874289937,5.16781823,143.79,143.77,94.255554]
[1750874290132,18.64964886,143.8,143.77,94.255554]
[1750874290446,5.16822983,143.79,143.77,94.255554]
[1750874290634,18.64964886,143.8,143.77,104.22756727]
[1750874290837,5.16822724,143.79,143.77,104.22756727]
[1750874291030,18.64964886,143.8,143.77,104.22756727]
[1750874291330,5.16822724,143.79,143.77,104.22756727]
[1750874291534,18.64964886,143.8,143.77,104.22756727]
[1750874291739,5.16863946,143.79,143.77,104.22756727]
[1750874292041,18.64964886,143.8,143.77,104.22756727]
[1750874292429,18.64964886,143.8,143.77,94.255554]
[1750874293830,28.62166213,143.8,143.77,94.255554]
[1750874294030,18.64964886,143.8,143.77,94.255554]
[1750874294944,28.62166213,143.8,143.77,94.255554]
[1750874295254,18.64964886,143.78,143.77,87.3]
[1750874295442,33.79218512,143.78,143.77,87.3]
[1750874295759,28.62166213,143.78,143.77,87.3]
[1750874295938,33.79218512,143.78,143.77,87.3]
[1750874296134,28.62166213,143.78,143.77,87.3]
[1750874296340,25.29667255,143.78,143.77,87.3]
[1750874297632,18.64964886,143.8,143.77,87.3]
[1750874297832,18.64964886,143.78,143.77,87.3]
[1750874298941,18.64964886,143.78,143.77,94.255554]
[1750874299131,18.64964886,143.8,143.77,94.255554]
[1750874299330,25.29667255,143.8,143.77,94.255554]
[1750874302162,18.64964886,143.78,143.77,87.3]
[1750874302757,18.64964886,143.78,143.77,94.255554]
[1750874303055,18.64964886,143.8,143.77,94.255554]
[1750874303265,18.64964886,143.8,143.77,100.90257769]
[1750874303459,18.64964886,143.81,143.78,6.64702369]
[1750874303637,5.16778256,143.83,143.79,6.95458654]
[1750874303838,18.64964886,143.82,143.79,13.60161023]
[1750874304159,25.29667255,143.82,143.78,100.90194595]
[1750874305353,25.29667255,143.82,143.78,94.25492226]
[1750874306557,25.29667255,143.82,143.78,100.90194595]
[1750874306964,6.64702369,143.83,143.79,6.64702369]
[1750874307157,18.64964886,143.83,143.79,6.64702369]
[1750874307356,25.29667255,143.83,143.79,6.64702369]
[1750874307547,25.29667255,143.83,143.79,93.94702369]
[1750874307863,18.64964886,143.83,143.79,93.94702369]
[1750874308362,25.29667255,143.83,143.79,87.3]
[1750874309065,25.29667255,143.83,143.8,6.95410292]
[1750874310941,25.29667255,143.83,143.8,94.25410292]
[1750874311662,6.64702369,143.81,143.8,87.3]
[1750874311969,25.29667255,143.81,143.8,87.3]
[1750874313061,18.64964886,143.8,143.78,87.3]
[1750874313256,25.29667255,143.79,143.78,87.3]
[1750874313458,18.64964886,143.79,143.78,87.3]
[1750874313695,25.29667255,143.79,143.78,87.3]
[1750874316583,30.4784817,143.79,143.78,87.3]
[1750874316763,25.29667255,143.79,143.78,87.3]
[1750874317069,30.4784817,143.79,143.78,87.3]
[1750874317375,11.82883284,143.8,143.78,87.3]
[1750874317675,23.83386405,143.82,143.78,100.90206808]
[1750874317857,5.18421519,143.81,143.78,100.90206808]
[1750874318053,18.64964886,143.82,143.78,100.90206808]
[1750874318258,5.18402999,143.81,143.78,100.90206808]
[1750874318481,18.64964886,143.82,143.78,100.90206808]
[1750874318655,5.18682447,143.81,143.78,100.90206808]
[1750874318858,25.29667255,143.82,143.78,100.90206808]
[1750874319066,5.18682447,143.81,143.78,100.90206808]
[1750874319354,18.64964886,143.82,143.78,100.90206808]
[1750874319577,5.18910563,143.81,143.78,100.90206808]
[1750874319764,18.64964886,143.82,143.78,100.90206808]
[1750874319976,5.18913606,143.81,143.78,100.90206808]
[1750874320159,18.64964886,143.82,143.78,100.90206808]
[1750874320350,5.1899708,143.81,143.78,100.90206808]
[1750874320554,18.64964886,143.82,143.78,100.90206808]
[1750874320879,5.19000124,143.81,143.78,100.90206808]
[1750874321185,18.64964886,143.82,143.78,100.90206808]
[1750874321352,5.19078536,143.81,143.78,100.90206808]
[1750874321548,18.64964886,143.82,143.78,100.90206808]
[1750874321775,5.19078216,143.81,143.78,100.90206808]
[1750874322079,18.64964886,143.82,143.78,100.90206808]
[1750874322378,5.19131051,143.81,143.78,100.90206808]
[1750874322564,18.64964886,143.82,143.78,100.90206808]
[1750874323075,25.29667255,143.82,143.78,100.90206808]
[1750874323880,18.64964886,143.82,143.78,100.90206808]
[1750874326487,5.19443567,143.81,143.78,100.90206808]
[1750874326804,6.95231858,143.84,143.8,6.64702369]
[1750874326805,18.64964886,143.84,143.8,6.64702369]
[1750874326983,5.19415037,143.83,143.81,6.64702369]
[1750874327158,5.19415037,143.82,143.81,6.64702369]
[1750874327692,18.64964886,143.85,143.81,6.64702369]
[1750874327879,5.19566511,143.84,143.82,6.95313586]
[1750874328085,5.19566511,143.83,143.82,6.95313586]
[1750874331671,5.19566511,143.83,143.82,94.25313586]
[1750874333685,5.19566511,143.83,143.82,100.90015955]
[1750874333877,18.64964886,143.87,143.82,100.90015955]
[1750874334077,5.1926059,143.86,143.84,6.64702369]
[1750874334385,5.1926059,143.85,143.84,13.59919276]
[1750874335560,6.47354588,143.89,143.84,13.59919276]
[1750874335869,5.18973465,143.88,143.85,6.64702369]
[1750874336065,5.18973465,143.87,143.85,260.3]
[1750874336268,18.64964886,143.91,143.87,6.95071939]
[1750874336481,5.18523309,143.9,143.88,6.64702369]
[1750874336676,18.64964886,143.91,143.88,6.64702369]
[1750874336864,5.18505055,143.9,143.89,6.64702369]
[1750874337070,5.185033,143.9,143.89,6.64702369]
[1750874337259,23.82982147,143.92,143.89,6.64702369]
[1750874337469,18.64964886,143.92,143.88,6.64702369]
[1750874338076,25.29667255,143.92,143.88,93.94702369]
[1750874338385,25.29667255,143.92,143.88,87.3]
[1750874338386,6.64702369,143.9,143.88,87.3]
[1750874339457,11.82254218,143.9,143.88,87.3]
[1750874342485,6.64702369,143.9,143.88,87.3]
[1750874342990,18.64964886,143.9,143.88,94.25019572]
[1750874343193,18.64964886,143.9,143.88,87.3]
[1750874343573,12.12100978,143.92,143.88,87.3]
[1750874343774,18.64964886,143.9,143.88,94.2501469]
[1750874344687,25.29667255,143.9,143.88,87.3]
[1750874345882,18.64964886,143.9,143.88,87.3]
[1750874346076,18.64964886,143.92,143.89,6.64702369]
[1750874346303,18.64964886,143.94,143.9,6.64702369]
[1750874346479,23.81792765,143.94,143.9,93.94702369]
[1750874346802,30.46495134,143.94,143.9,93.94702369]
[1750874347183,6.64702369,143.93,143.9,87.3]
[1750874347773,6.64702369,143.93,143.9,94.24919067]
[1750874348321,20.22344886,143.9,143.84,87.3]
[1750874348605,6.64702369,143.87,143.84,87.3]
[1750874350070,6.64702369,143.86,143.84,87.3]
[1750874350270,6.64702369,143.86,143.83,94.25248922]
[1750874350474,25.29667255,143.87,143.83,94.25248922]
[1750874350698,25.29667255,143.87,143.83,100.89951291]
[1750874351076,12.11821677,143.89,143.83,100.89951291]
[1750874351302,25.29667255,143.88,143.84,6.64702369]
[1750874351479,25.29667255,143.88,143.83,100.89951291]
[1750874351480,6.64702369,143.87,143.83,100.89951291]
[1750874351688,6.64702369,143.87,143.83,94.25248922]
[1750874352783,6.64702369,143.87,143.83,100.89951291]
[1750874352985,6.64702369,143.87,143.83,94.25248922]
[1750874354385,6.64702369,143.86,143.83,87.3]
[1750874354592,6.64702369,143.84,143.83,87.3]
[1750874355209,25.29667255,143.84,143.82,87.3]
[1750874355398,6.64702369,143.83,143.82,87.3]
[1750874355604,25.29667255,143.84,143.82,87.3]
[1750874359221,25.29667255,143.84,143.82,94.25310153]
[1750874359398,6.64702369,143.85,143.82,94.25310153]
[1750874359594,25.29667255,143.86,143.82,100.90012522]
[1750874361915,18.64964886,143.87,143.83,6.64702369]
[1750874362223,18.64964886,143.87,143.83,93.94702369]
[1750874363518,18.64964886,143.87,143.84,6.95216907]
[1750874363723,25.29667255,143.87,143.84,6.95216907]
[1750874363900,18.64964886,143.87,143.84,6.95216907]
[1750874364105,18.64964886,143.88,143.85,6.64702369]
[1750874364309,30.47257683,143.88,143.84,6.95216907]
[1750874364511,25.29667255,143.88,143.84,6.95216907]
[1750874364821,30.47257683,143.88,143.84,6.95216907]
[1750874364994,25.29667255,143.88,143.84,6.95216907]
[1750874366221,25.29667255,143.88,143.84,13.59919276]
[1750874366518,25.29667255,143.88,143.84,6.95216907]
[1750874366910,6.64702369,143.87,143.84,6.95216907]
[1750874367220,6.64702369,143.87,143.84,94.25216907]
[1750874367401,25.29667255,143.88,143.84,94.25216907]
[1750874367600,6.64702369,143.88,143.84,94.25216907]
[1750874367802,11.82613774,143.88,143.84,94.25216907]
[1750874368320,6.64702369,143.88,143.84,94.25216907]
[1750874369221,6.64702369,143.88,143.84,100.89919276]
[1750874369628,6.64702369,143.87,143.84,94.25216907]
[1750874371038,6.64702369,143.86,143.84,87.3]
[1750874371214,6.64702369,143.85,143.84,87.3]
[1750874372312,5.18103682,143.86,143.84,87.3]
[1750874372524,6.64702369,143.85,143.84,87.3]
[1750874372829,5.18187749,143.86,143.84,87.3]
[1750874373127,25.60039849,143.87,143.84,87.3]
[1750874373128,6.64702369,143.85,143.84,87.3]
[1750874376416,5.18338079,143.86,143.84,87.3]
[1750874376622,6.64702369,143.86,143.84,87.3]
[1750874377430,25.29667255,143.85,143.84,87.3]
[1750874377625,30.47892165,143.85,143.84,87.3]
[1750874379024,18.64964886,143.84,143.81,120.25347863]
[1750874379732,6.64702369,143.86,143.82,6.64702369]
[1750874379903,5.18052611,143.85,143.82,6.64702369]
[1750874380110,18.64964886,143.88,143.83,6.64702369]
[1750874380324,11.82793661,143.87,143.83,93.94702369]
[1750874380525,5.18091292,143.86,143.83,93.94702369]
[1750874380739,6.64702369,143.87,143.83,87.3]
[1750874380914,5.18133074,143.86,143.83,87.3]
[1750874381112,6.64702369,143.87,143.83,87.3]
[1750874381308,5.18131869,143.86,143.84,6.95216907]
[1750874381634,6.64702369,143.86,143.84,6.95216907]
[1750874383514,25.59958084,143.89,143.84,6.95216907]
[1750874383714,11.82956627,143.88,143.84,13.59919276]
[1750874384013,6.64702369,143.88,143.84,13.59919276]
[1750874384210,18.64964886,143.89,143.84,24.33259176]
[1750874384429,5.18314015,143.88,143.85,6.64702369]
[1750874384609,25.29667255,143.89,143.86,6.95120255]
[1750874384812,5.18389042,143.88,143.86,94.25120255]
[1750874385027,25.29667255,143.89,143.86,94.25120255]
[1750874385226,5.18449512,143.88,143.86,94.25120255]
[1750874385425,25.29667255,143.89,143.86,94.25120255]
[1750874385734,5.18435987,143.88,143.86,94.25120255]
[1750874385930,25.29667255,143.89,143.86,94.25120255]
[1750874386136,5.18469483,143.88,143.86,6.95120255]
[1750874386316,6.64702369,143.89,143.86,6.95120255]
[1750874386518,5.18466747,143.88,143.86,13.59822624]
[1750874386822,6.64702369,143.91,143.87,6.64702369]
[1750874387023,5.18545572,143.9,143.87,6.64702369]
[1750874387224,6.64702369,143.91,143.87,6.64702369]
[1750874387426,5.18601116,143.9,143.87,6.64702369]
[1750874387615,6.64702369,143.91,143.87,6.64702369]
[1750874387816,5.18580168,143.9,143.87,6.64702369]
[1750874388123,6.64702369,143.91,143.87,6.64702369]
[1750874388326,5.18742032,143.9,143.87,6.64702369]
[1750874388528,6.64702369,143.91,143.87,6.64702369]
[1750874388730,5.18745807,143.9,143.88,6.9502363]
[1750874389031,6.64702369,143.91,143.88,6.9502363]
[1750874389236,5.18779884,143.9,143.88,6.9502363]
[1750874389536,6.64702369,143.91,143.88,6.9502363]
[1750874389736,5.18804752,143.9,143.87,6.95071939]
[1750874389940,6.64702369,143.91,143.87,6.95071939]
[1750874390139,5.18918904,143.9,143.87,6.95071939]
[1750874390433,6.64702369,143.91,143.87,6.95071939]
[1750874390642,5.18878842,143.9,143.87,13.59774308]
[1750874390827,6.64702369,143.91,143.87,100.89774308]
[1750874391017,5.18881753,143.9,143.88,6.64702369]
[1750874391218,18.64964886,143.92,143.89,6.64702369]
[1750874391418,5.18838671,143.91,143.89,93.94702369]
[1750874391617,18.64964886,143.92,143.89,93.94702369]
[1750874391832,13.12056957,143.95,143.91,6.64702369]
[1750874392147,13.12056957,143.95,143.91,93.94702369]
[1750874392148,5.18798109,143.94,143.91,93.94702369]
[1750874392350,5.18798109,143.94,143.92,6.64702369]
[1750874392648,18.64964886,143.95,143.92,6.64702369]
[1750874392847,18.64964886,143.95,143.91,93.94702369]
[1750874393064,27.6351,143.97,143.92,6.64702369]
[1750874393222,25.29667255,143.96,143.92,6.64702369]
[1750874393746,25.29667255,143.96,143.92,6.94830461]
[1750874393949,6.64702369,143.93,143.91,87.3]
[1750874394239,25.29667255,143.92,143.89,6.94963044]
[1750874394440,6.64702369,143.91,143.89,94.24963044]
[1750874395029,25.29667255,143.9,143.88,6.9500747]
[1750874395352,6.64702369,143.9,143.88,6.9500747]
[1750874395528,6.64702369,143.9,143.86,87.3]
[1750874395863,6.64702369,143.89,143.86,6.95120255]
[1750874396649,6.64702369,143.88,143.86,6.95120255]
[1750874398433,6.64702369,143.87,143.85,6.95152125]
[1750874399551,6.64702369,143.87,143.84,6.95216907]
[1750874399846,6.64702369,143.86,143.84,6.95216907]
[1750874400648,6.64702369,143.86,143.83,6.95261899]
[1750874400946,18.64964886,143.89,143.82,6.95297614]
[1750874401138,6.64702369,143.86,143.82,13.59999983]
[1750874401649,5.38814059,143.86,143.82,13.59999983]
[1750874401821,18.64964886,143.89,143.82,13.59999983]
[1750874402018,27.6612,143.91,143.84,6.64702369]
[1750874402222,18.64964886,143.9,143.84,6.64702369]
[1750874402441,6.64702369,143.89,143.84,6.64702369]
[1750874402818,6.64702369,143.88,143.83,6.64702369]
[1750874403023,6.64702369,143.85,143.82,6.95297614]
[1750874403225,6.64702369,143.83,143.81,94.25347151]
[1750874403444,6.64702369,143.84,143.81,94.25347151]
[1750874404651,6.64702369,143.83,143.81,94.25347151]
[1750874404857,6.64702369,143.84,143.81,94.25347151]
[1750874405159,6.64702369,143.84,143.81,6.95347151]
[1750874405551,6.64702369,143.85,143.81,6.95347151]
[1750874406134,6.64702369,143.84,143.81,6.95347151]
[1750874407556,13.31501637,143.87,143.83,6.64702369]
[1750874407557,18.64964886,143.87,143.83,6.64702369]
[1750874407756,25.29667255,143.87,143.83,6.64702369]
[1750874407952,25.29667255,143.87,143.82,6.64702369]
[1750874408658,18.64964886,143.87,143.83,13.59967612]
[1750874408957,6.64702369,143.86,143.83,6.95265243]
[1750874410170,25.29667255,143.87,143.83,13.59967612]
[1750874411559,25.29667255,143.87,143.83,6.95265243]
[1750874411736,6.64702369,143.86,143.83,6.95265243]
[1750874411931,18.64964886,143.85,143.83,6.95265243]
[1750874412152,18.64964886,143.83,143.82,87.3]
[1750874412464,6.64702369,143.83,143.82,87.3]
[1750874413354,13.59967612,143.83,143.8,87.3]
[1750874413551,25.29667255,143.81,143.8,87.3]